bitfinex-derivatives/quotes_SOLF0:USTF0_20250331
["timestamp","ask_amount","ask_price","bid_price","bid_amount"]
[1743427617200,7.9695,125.5,125.48,0.0588542]
[1743427617797,8.02052576,125.51,125.48,0.0588542]
[1743427618195,0.05132576,125.51,125.48,0.0588542]
[1743427618799,0.05132576,125.51,125.48,8.0292542]
[1743427619101,0.05132576,125.51,125.49,31.84]
[1743427620601,0.05132576,125.51,125.48,0.0588542]
[1743427620799,0.05132576,125.51,125.44,93.84]
[1743427620995,7.9722,125.46,125.44,93.84]
[1743427621198,7.9722,125.46,125.44,31.84]
[1743427621596,7.9717,125.47,125.44,31.84]
[1743427622001,0.06029706,125.47,125.44,31.8961109]
[1743427622192,8.03219706,125.47,125.44,31.8961109]
[1743427624202,7.9721,125.46,125.44,93.8961109]
[1743427624799,7.9727,125.45,125.44,0.0561109]
[1743427624999,0.06029706,125.47,125.44,0.0561109]
[1743427626305,7.9727,125.45,125.44,0.0561109]
[1743427627005,0.06029706,125.47,125.44,0.0561109]
[1743427627195,0.06029706,125.47,125.46,23.01918555]
[1743427627395,11.7021,125.53,125.46,54.85918555]
[1743427627701,7.969,125.51,125.48,7.9705]
[1743427628196,11.7021,125.53,125.47,62.0]
[1743427628395,0.05101867,125.5,125.48,0.0535031]
[1743427628706,8.02111867,125.5,125.48,0.0535031]
[1743427629004,0.05101867,125.5,125.48,0.0535031]
[1743427629205,7.9701,125.49,125.48,0.0535031]
[1743427629603,0.05101867,125.5,125.48,0.0535031]
[1743427629803,0.05101867,125.5,125.48,8.0238031]
[1743427630302,0.05101867,125.5,125.48,0.0535031]
[1743427631007,8.02051867,125.5,125.48,0.0535031]
[1743427631202,0.05101867,125.5,125.48,0.0535031]
[1743427631407,0.05101867,125.5,125.49,62.0]
[1743427631603,23.01918555,125.59,125.49,93.84]
[1743427631804,3.8364,125.57,125.49,93.84]
[1743427632004,23.01918555,125.55,125.49,93.84]
[1743427632200,7.9695,125.5,125.49,31.84]
[1743427632508,23.01918555,125.55,125.46,31.84]
[1743427633008,7.9689,125.51,125.49,0.05271885]
[1743427633708,8.02846485,125.52,125.49,0.05271885]
[1743427635306,0.05996485,125.52,125.49,0.05271885]
[1743427635609,0.05996485,125.52,125.49,31.89271885]
[1743427636509,0.05996485,125.52,125.49,0.05271885]
[1743427638111,8.02876485,125.52,125.49,0.05271885]
[1743427638517,0.05996485,125.52,125.49,0.05271885]
[1743427638709,7.9691,125.51,125.49,0.05271885]
[1743427639911,8.02856485,125.52,125.49,0.05271885]
[1743427640117,0.05996485,125.52,125.49,0.05271885]
[1743427640312,0.05996485,125.52,125.49,31.87271885]
[1743427640518,0.05996485,125.52,125.5,7.9695]
[1743427640712,0.05996485,125.52,125.49,31.87271885]
[1743427641016,0.05996485,125.52,125.51,7.9689]
[1743427641910,0.05996485,125.52,125.51,69.9689]
[1743427644216,7.966,125.56,125.51,62.0]
[1743427644419,7.966,125.56,125.52,31.82]
[1743427644813,11.8018,125.57,125.53,7.9673]
[1743427645007,3.8364,125.57,125.53,7.9673]
[1743427645213,0.05415059,125.56,125.54,0.05922805]
[1743427645513,7.9663,125.55,125.54,0.05922805]
[1743427646015,0.05415059,125.56,125.52,31.82]
[1743427646016,7.9675,125.54,125.52,31.82]
[1743427646317,0.05415059,125.56,125.52,31.82]
[1743427647006,7.9665,125.55,125.53,0.05418305]
[1743427648317,7.967,125.54,125.53,0.05418305]
[1743427648614,23.07143096,125.56,125.49,62.0]
[1743427648816,7.9701,125.49,125.48,84.91762708]
[1743427649114,23.01728037,125.5,125.47,129.7963688]
[1743427649318,7.9708,125.48,125.47,129.7963688]
[1743427650015,7.9714,125.47,125.46,150.99790966]
[1743427650720,7.9714,125.47,125.46,69.03046921]
[1743427650920,39.7914,125.47,125.46,12.74546921]
[1743427651111,39.7914,125.47,125.46,6.921e-05]
[1743427652212,31.82,125.47,125.46,6.921e-05]
[1743427652611,7.9721,125.46,125.45,0.05208934]
[1743427654217,39.7921,125.46,125.45,0.05208934]
[1743427659726,31.82,125.46,125.45,0.05208934]
[1743427659926,286.79198498,125.49,125.45,0.05208934]
[1743427660323,0.05198498,125.49,125.45,0.05208934]
[1743427660922,0.05198498,125.49,125.45,7.79198934]
[1743427661832,7.971,125.48,125.45,7.79198934]
[1743427662026,0.05198498,125.49,125.45,7.79198934]
[1743427662429,7.9714,125.47,125.45,7.79198934]
[1743427663733,0.05198498,125.49,125.45,7.79198934]
[1743427663930,0.05198498,125.49,125.45,0.05208934]
[1743427664340,7.9721,125.46,125.45,0.05208934]
[1743427667933,39.7921,125.46,125.45,8.934e-05]
[1743427668432,46.27932941,125.49,125.45,8.934e-05]
[1743427668732,31.87198498,125.49,125.45,8.934e-05]
[1743427668935,7.9721,125.46,125.45,8.934e-05]
[1743427669327,31.87198498,125.49,125.45,8.934e-05]
[1743427669524,8.02248498,125.49,125.45,8.934e-05]
[1743427670230,0.05198498,125.49,125.45,8.934e-05]
[1743427671537,8.02238498,125.49,125.46,7.9717]
[1743427671838,0.05198498,125.49,125.45,8.934e-05]
[1743427672137,7.9719,125.47,125.45,8.934e-05]
[1743427672539,0.05198498,125.49,125.45,8.934e-05]
[1743427672837,7.9711,125.48,125.45,8.934e-05]
[1743427673331,8.02228498,125.49,125.45,8.934e-05]
[1743427673533,0.05198498,125.49,125.45,3.23838934]
[1743427673738,0.05198498,125.49,125.45,8.934e-05]
[1743427674637,7.9718,125.47,125.45,8.934e-05]
[1743427675241,7.9711,125.48,125.46,7.972]
[1743427675536,0.05198498,125.49,125.46,7.972]
[1743427675738,8.02248498,125.49,125.46,7.972]
[1743427676037,0.05198498,125.49,125.45,14.40743377]
[1743427676331,0.05198498,125.49,125.46,6.2401]
[1743427676527,0.05198498,125.49,125.47,7.9714]
[1743427676930,8.02218498,125.49,125.46,6.2401]
[1743427677137,0.05198498,125.49,125.46,6.2401]
[1743427677539,7.9708,125.48,125.46,6.2401]
[1743427680238,0.05198498,125.49,125.46,6.2401]
[1743427680429,286.84,125.55,125.47,46.20734443]
[1743427680933,7.9679,125.53,125.5,7.9694]
[1743427681539,0.06024293,125.53,125.51,7.9688]
[1743427681836,43.71444457,125.58,125.5,31.85871939]
[1743427682040,43.71444457,125.58,125.51,14.40734443]
[1743427682541,43.71444457,125.58,125.52,6.4395]
[1743427682740,43.71444457,125.58,125.52,14.4075]
[1743427683238,0.05271104,125.56,125.54,0.05783011]
[1743427683541,0.05271104,125.56,125.54,62.05783011]
[1743427683741,8.01881104,125.56,125.54,62.05783011]
[1743427684941,7.9663,125.55,125.54,62.05783011]
[1743427685241,0.05271104,125.56,125.54,62.05783011]
[1743427685438,7.9663,125.55,125.54,62.05783011]
[1743427685640,7.9663,125.55,125.54,0.05783011]
[1743427686144,22.37364443,125.55,125.54,0.05783011]
[1743427686942,7.9695,125.5,125.46,31.8]
[1743427687137,7.9695,125.5,125.47,3.1192]
[1743427687340,14.40734443,125.53,125.47,3.1192]
[1743427687541,14.40734443,125.51,125.47,3.1192]
[1743427687747,23.05150062,125.5,125.42,3.1192]
[1743427688046,23.05150062,125.48,125.42,6.2037]
[1743427688342,0.05553821,125.47,125.45,0.05156037]
[1743427688742,7.9721,125.46,125.45,0.05156037]
[1743427688942,0.05553821,125.47,125.45,0.05156037]
[1743427689244,8.02723821,125.47,125.45,0.05156037]
[1743427689646,0.05553821,125.47,125.45,0.05156037]
[1743427690143,286.76,125.52,125.45,0.05156037]
[1743427690450,31.78,125.53,125.46,31.8]
[1743427690746,39.7479,125.53,125.47,7.9713]
[1743427691146,31.78,125.53,125.47,7.9713]
[1743427691446,31.78,125.53,125.49,0.05161219]
[1743427691447,0.06052974,125.51,125.49,0.05161219]
[1743427692339,0.06052974,125.51,125.49,31.83161219]
[1743427693349,8.02942974,125.51,125.49,93.83161219]
[1743427693946,0.06052974,125.51,125.49,31.83161219]
[1743427695651,0.06052974,125.51,125.49,39.80171219]
[1743427695949,0.06052974,125.51,125.49,31.83161219]
[1743427696950,31.78,125.56,125.49,93.83161219]
[1743427697948,54.83150062,125.56,125.49,93.83161219]
[1743427698145,8.02133411,125.54,125.5,7.9694]
[1743427698546,8.02133411,125.54,125.51,0.0573735]
[1743427698948,0.05373411,125.54,125.51,8.0261735]
[1743427699152,0.05373411,125.54,125.51,0.0573735]
[1743427699751,0.05373411,125.54,125.51,8.0258735]
[1743427699946,0.05373411,125.54,125.51,0.0573735]
[1743427700654,7.9679,125.53,125.51,0.0573735]
[1743427701455,8.02093411,125.54,125.51,8.0261735]
[1743427702054,8.02093411,125.54,125.51,0.0573735]
[1743427702254,0.05373411,125.54,125.51,0.0573735]
[1743427703154,23.10523473,125.54,125.51,0.0573735]
[1743427703954,7.9682,125.52,125.51,0.0573735]
[1743427704856,7.9678,125.53,125.51,0.0573735]
[1743427705657,0.05373411,125.54,125.51,0.0573735]
[1743427706255,7.968,125.53,125.51,0.0573735]
[1743427707857,8.02103411,125.54,125.51,0.0573735]
[1743427708064,0.05373411,125.54,125.51,0.0573735]
[1743427708462,7.9676,125.53,125.51,8.0259735]
[1743427708661,7.9676,125.53,125.51,0.0573735]
[1743427709364,7.9682,125.52,125.51,0.0573735]
[1743427709759,7.9712,125.48,125.42,14.39316387]
[1743427710060,14.39316387,125.51,125.44,7.9729]
[1743427710365,7.9717,125.47,125.43,38.2143]
[1743427710763,14.39316387,125.51,125.44,7.9729]
[1743427710964,0.05215116,125.46,125.44,8.02616172]
[1743427711167,7.972,125.47,125.44,8.02616172]
[1743427711466,0.05246114,125.46,125.44,8.02616172]
[1743427711657,0.05246114,125.46,125.45,7.9727]
[1743427711863,14.39316387,125.51,125.44,0.05326172]
[1743427712064,14.39316387,125.51,125.44,31.83326172]
[1743427712568,14.39316387,125.51,125.44,93.83326172]
[1743427712761,7.9706,125.49,125.44,93.83326172]
[1743427712962,8.02092447,125.49,125.44,93.83326172]
[1743427713161,7.9708,125.48,125.45,7.9723]
[1743427713871,8.02082447,125.49,125.46,7.9718]
[1743427714770,7.9708,125.48,125.45,7.9723]
[1743427715068,0.05032447,125.49,125.44,93.83326172]
[1743427715271,7.9717,125.47,125.44,101.80636172]
[1743427715672,0.05032447,125.49,125.44,93.83326172]
[1743427715873,7.9712,125.48,125.45,7.9726]
[1743427716075,0.05032447,125.49,125.44,93.83326172]
[1743427716372,7.9719,125.47,125.44,101.80646172]
[1743427716568,0.05032447,125.49,125.44,93.83326172]
[1743427716973,7.9717,125.47,125.44,101.80596172]
[1743427717376,0.05032447,125.49,125.44,93.83326172]
[1743427717565,0.05032447,125.49,125.45,7.9724]
[1743427717976,7.9715,125.47,125.45,7.9724]
[1743427718176,0.05032447,125.49,125.44,31.83326172]
[1743427718670,7.9724,125.46,125.44,31.83326172]
[1743427718878,14.39316387,125.49,125.44,31.83326172]
[1743427719077,7.9727,125.45,125.44,31.83326172]
[1743427719272,0.05275242,125.46,125.44,8.02656172]
[1743427719872,8.02505242,125.46,125.44,8.02656172]
[1743427720675,0.05275242,125.46,125.44,0.05326172]
[1743427720883,46.17316387,125.54,125.45,46.17316387]
[1743427721180,46.17316387,125.54,125.46,62.0]
[1743427721379,7.9697,125.5,125.47,7.9711]
[1743427721975,8.02790688,125.5,125.47,0.06065797]
[1743427723682,7.9702,125.49,125.47,8.03205797]
[1743427723979,0.05820688,125.5,125.47,0.06065797]
[1743427724284,7.9708,125.48,125.47,0.06065797]
[1743427724874,7.9706,125.49,125.47,0.06065797]
[1743427725581,0.05820688,125.5,125.47,0.06065797]
[1743427726182,7.9705,125.49,125.47,8.03175797]
[1743427727876,7.9705,125.49,125.47,0.06065797]
[1743427729282,7.9708,125.48,125.47,0.06065797]
[1743427732486,7.9708,125.48,125.47,5.797e-05]
[1743427732680,7.9731,125.45,125.43,6.4343]
[1743427732885,31.76,125.48,125.43,6.4343]
[1743427733085,7.9733,125.44,125.43,6.4343]
[1743427733387,14.39316387,125.47,125.43,14.4081]
[1743427733579,7.9729,125.45,125.43,14.4081]
[1743427733885,7.9729,125.45,125.44,0.06035433]
[1743427734782,22.36606387,125.45,125.44,0.06035433]
[1743427735383,54.12606387,125.45,125.44,5.433e-05]
[1743427737176,46.15316387,125.45,125.34,17.44916387]
[1743427737378,14.39316387,125.43,125.35,6.1914]
[1743427737579,14.39316387,125.43,125.37,7.9775]
[1743427737787,7.9759,125.4,125.35,37.9514]
[1743427737977,14.39316387,125.43,125.35,37.9514]
[1743427738182,7.9754,125.41,125.38,7.9767]
[1743427738383,0.05876502,125.4,125.38,8.03725775]
[1743427739389,8.03486502,125.4,125.38,0.06055775]
[1743427739589,0.05876502,125.4,125.38,0.06055775]
[1743427740288,7.9765,125.39,125.38,0.06055775]
[1743427742287,0.05876502,125.4,125.38,0.06055775]
[1743427742492,31.76,125.45,125.38,0.06055775]
[1743427742688,7.9744,125.43,125.4,7.9759]
[1743427743392,7.9747,125.42,125.39,69.9761]
[1743427743690,7.9747,125.42,125.4,0.0577331]
[1743427744487,8.02658837,125.43,125.4,8.0332331]
[1743427744692,8.02658837,125.43,125.4,14.0851331]
[1743427745791,0.05238837,125.43,125.4,6.1096331]
[1743427746188,14.39316387,125.42,125.4,0.0577331]
[1743427746689,7.9752,125.42,125.4,0.0577331]
[1743427747090,31.81238837,125.43,125.4,0.0577331]
[1743427747892,7.9752,125.42,125.4,0.0577331]
[1743427748090,31.81238837,125.43,125.4,0.0577331]
[1743427748691,0.05238837,125.43,125.4,0.0577331]
[1743427749991,0.05238837,125.43,125.4,6.2532331]
[1743427750192,0.05238837,125.43,125.41,7.9749]
[1743427751389,0.05238837,125.43,125.4,6.2532331]
[1743427751895,8.02658837,125.43,125.4,14.2288331]
[1743427752893,7.9749,125.42,125.4,68.2532331]
[1743427753087,0.05238837,125.43,125.4,6.2532331]
[1743427754395,7.9749,125.42,125.4,6.2532331]
[1743427755694,7.9749,125.42,125.4,14.2290331]
[1743427755996,7.9749,125.42,125.4,6.2532331]
[1743427756995,7.9752,125.41,125.4,0.0577331]
[1743427761097,7.975,125.42,125.4,0.0577331]
[1743427762196,39.78658837,125.43,125.4,0.0577331]
[1743427762400,0.05238837,125.43,125.4,8.0333331]
[1743427762898,7.9746,125.42,125.4,0.0577331]
[1743427763599,0.05238837,125.43,125.4,0.0577331]
[1743427764203,14.39316387,125.42,125.4,0.0577331]
[1743427764402,46.15316387,125.42,125.4,3.31e-05]
[1743427764797,14.39316387,125.39,125.34,11.1111]
[1743427764996,14.39316387,125.39,125.34,3.1317]
[1743427765803,8.03295742,125.38,125.36,0.05473371]
[1743427766104,0.05565742,125.38,125.36,31.81473371]
[1743427766402,7.9752,125.41,125.39,7.9763]
[1743427766902,7.9752,125.41,125.38,7.9768]
[1743427767201,7.9752,125.41,125.39,62.0]
[1743427767405,8.03394865,125.41,125.39,62.0]
[1743427767597,0.05874865,125.41,125.39,62.0]
[1743427767900,0.05874865,125.41,125.38,0.05937203]
[1743427768094,7.9762,125.4,125.38,0.05937203]
[1743427768500,0.05874865,125.41,125.38,0.05937203]
[1743427768700,0.05874865,125.41,125.38,8.03627203]
[1743427768901,0.05874865,125.41,125.38,0.05937203]
[1743427769196,7.9762,125.4,125.38,0.05937203]
[1743427769903,7.9765,125.39,125.38,0.05937203]
[1743427770398,0.05874865,125.41,125.38,0.05937203]
[1743427770798,7.9759,125.4,125.38,0.05937203]
[1743427771000,0.05874865,125.41,125.38,0.05937203]
[1743427772104,8.03454865,125.41,125.38,8.03627203]
[1743427772399,0.05874865,125.41,125.38,0.05937203]
[1743427772799,7.9765,125.39,125.38,0.05937203]
[1743427779603,22.36936387,125.4,125.38,0.05937203]
[1743427779905,0.05874865,125.41,125.38,0.05937203]
[1743427780304,7.9761,125.4,125.38,0.05937203]
[1743427781409,8.03434865,125.41,125.38,8.03647203]
[1743427781600,0.05874865,125.41,125.38,0.05937203]
[1743427782001,7.9761,125.4,125.38,0.05937203]
[1743427782206,0.05874865,125.41,125.38,0.05937203]
[1743427783008,0.05874865,125.41,125.39,62.0]
[1743427783206,7.9759,125.4,125.39,62.0]
[1743427783912,8.03434865,125.41,125.38,8.03637203]
[1743427784112,0.05874865,125.41,125.38,0.05937203]
[1743427784344,43.71444457,125.49,125.39,3.049]
[1743427784514,7.9726,125.46,125.42,7.9741]
[1743427784711,301.21316387,125.48,125.4,34.9181]
[1743427785014,14.39316387,125.44,125.4,3.1781]
[1743427785512,0.05474661,125.43,125.41,0.05692311]
[1743427785711,7.9746,125.42,125.41,0.05692311]
[1743427789920,22.36776387,125.42,125.41,0.05692311]
[1743427790611,7.9778,125.37,125.36,3.2416]
[1743427791820,14.39316387,125.4,125.35,0.05930916]
[1743427791821,0.0590134,125.38,125.35,0.05930916]
[1743427792623,7.9784,125.36,125.35,0.05930916]
[1743427793209,7.9779,125.37,125.35,0.05930916]
[1743427793411,0.0590134,125.38,125.35,0.05930916]
[1743427793826,0.0590134,125.38,125.36,7.9783]
[1743427794019,14.39316387,125.42,125.35,0.05930916]
[1743427794429,14.39316387,125.42,125.35,8.03810916]
[1743427794430,7.9768,125.39,125.35,8.03810916]
[1743427794630,14.39316387,125.42,125.35,0.05930916]
[1743427795124,14.4473727,125.4,125.35,0.05930916]
[1743427795528,46.1673727,125.4,125.35,0.05930916]
[1743427795827,7.9781,125.37,125.35,0.05930916]
[1743427796227,8.03863318,125.37,125.35,0.05930916]
[1743427796830,8.03863318,125.37,125.35,62.05930916]
[1743427797031,7.9784,125.36,125.35,0.05930916]
[1743427797631,8.03873318,125.37,125.35,0.05930916]
[1743427797828,0.06053318,125.37,125.35,0.05930916]
[1743427798930,0.06053318,125.37,125.35,8.03800916]
[1743427799128,0.06053318,125.37,125.35,0.05930916]
[1743427799333,46.11316387,125.42,125.35,0.05930916]
[1743427799534,7.9762,125.4,125.37,7.9774]
[1743427799833,14.39316387,125.44,125.37,31.72]
[1743427800133,7.975,125.42,125.39,7.9764]
[1743427800326,14.44817343,125.42,125.39,0.05927157]
[1743427800526,7.9759,125.4,125.39,0.05927157]
[1743427801135,7.9755,125.41,125.39,0.05927157]
[1743427801334,0.05500956,125.42,125.39,0.05927157]
[1743427801532,0.05500956,125.42,125.4,31.72]
[1743427801734,7.9732,125.45,125.4,31.72]
[1743427802130,14.39316387,125.46,125.4,31.72]
[1743427802632,7.9724,125.46,125.43,7.9737]
[1743427802935,0.05873656,125.44,125.42,0.05791665]
[1743427803331,14.39316387,125.48,125.42,0.05791665]
[1743427803525,14.39316387,125.48,125.4,31.72]
[1743427803736,7.9724,125.46,125.43,7.9736]
[1743427803936,14.39316387,125.48,125.43,31.72]
[1743427804232,43.71444457,125.5,125.43,46.11316387]
[1743427804433,43.71444457,125.5,125.45,14.39316387]
[1743427804736,0.05546885,125.48,125.46,34.9833]
[1743427804929,43.71444457,125.5,125.46,34.9833]
[1743427805127,14.39316387,125.52,125.46,34.9833]
[1743427805330,11.05212358,125.53,125.46,34.9833]
[1743427805632,7.9686,125.52,125.48,7.9703]
[1743427806035,8.02183515,125.51,125.49,0.05927235]
[1743427806231,0.05293515,125.51,125.49,0.05927235]
[1743427806432,11.05212358,125.53,125.49,31.77927235]
[1743427806646,103.59884364,125.54,125.49,46.17243622]
[1743427806831,92.82144364,125.54,125.51,14.39316387]
[1743427807037,92.82144364,125.54,125.52,31.72]
[1743427807332,32.66232099,125.54,125.52,31.72]
[1743427807540,0.05680788,125.54,125.52,31.77454174]
[1743427808136,8.02410788,125.54,125.52,31.77454174]
[1743427808335,0.05680788,125.54,125.53,62.0]
[1743427808738,8.02380788,125.54,125.53,62.0]
[1743427809336,0.05680788,125.54,125.53,62.0]
[1743427811237,14.39316387,125.59,125.53,62.0]
[1743427811944,14.39316387,125.59,125.53,68.8685]
[1743427812543,0.05262575,125.57,125.55,0.0546418]
[1743427812738,7.9657,125.56,125.55,0.0546418]
[1743427814042,0.05262575,125.57,125.55,0.0546418]
[1743427814448,0.05262575,125.57,125.56,31.68]
[1743427814842,14.39316387,125.63,125.56,31.68]
[1743427815241,7.9643,125.59,125.56,31.68]
[1743427815945,14.39316387,125.59,125.56,31.68]
[1743427816147,14.44815898,125.59,125.56,31.73984594]
[1743427817247,14.44815898,125.59,125.56,0.05984594]
[1743427817446,46.12815898,125.59,125.56,0.05984594]
[1743427817948,7.9651,125.57,125.56,0.05984594]
[1743427819848,7.9685,125.52,125.5,3.4217]
[1743427820154,14.39316387,125.53,125.48,42.8921]
[1743427820450,14.39316387,125.53,125.48,34.9214]
[1743427820842,14.39316387,125.55,125.48,34.9214]
[1743427821045,7.9673,125.54,125.49,0.05669684]
[1743427821256,0.05152204,125.52,125.49,0.05669684]
[1743427821449,0.05152204,125.52,125.49,8.02659684]
[1743427821650,0.05152204,125.52,125.49,0.05669684]
[1743427822752,8.02022204,125.52,125.49,0.05669684]
[1743427823051,0.05152204,125.52,125.49,0.05669684]
[1743427823252,7.9695,125.5,125.49,0.05669684]
[1743427823451,14.39316387,125.51,125.49,0.05669684]
[1743427823947,7.9695,125.5,125.49,0.05669684]
[1743427825249,0.05152204,125.52,125.49,0.05669684]
[1743427826254,7.9692,125.51,125.49,0.05669684]
[1743427826651,0.05152204,125.52,125.49,0.05669684]
[1743427827350,7.9689,125.51,125.49,0.05669684]
[1743427827555,0.05152204,125.52,125.49,0.05669684]
[1743427828055,7.9695,125.5,125.49,0.05669684]
[1743427829055,14.39316387,125.51,125.43,3.3802]
[1743427829256,14.39316387,125.48,125.42,31.68]
[1743427830346,14.45289278,125.46,125.44,0.05537735]
[1743427830548,28.84605665,125.46,125.37,3.3304]
[1743427830749,17.95936387,125.45,125.37,3.3304]
[1743427830957,17.95936387,125.45,125.37,17.72356387]
[1743427831149,17.95936387,125.45,125.4,7.9758]
[1743427831354,17.95936387,125.45,125.37,17.72356387]
[1743427831554,17.95936387,125.45,125.38,62.0]
[1743427831756,0.05507688,125.42,125.4,0.05051406]
[1743427833256,0.05507688,125.42,125.41,7.9752]
[1743427834161,0.05507688,125.42,125.4,0.05051406]
[1743427835359,0.05507688,125.42,125.41,7.9752]
[1743427835957,14.39316387,125.47,125.42,7.9742]
[1743427836262,22.36476387,125.47,125.42,31.68]
[1743427836463,14.39316387,125.47,125.43,7.9736]
[1743427836662,304.39236387,125.49,125.42,31.68]
[1743427837163,0.05786755,125.47,125.44,0.0582867]
[1743427837464,0.05786755,125.47,125.45,31.68]
[1743427837764,0.05786755,125.47,125.46,7.9721]
[1743427837964,0.05786755,125.47,125.45,31.68]
[1743427838165,14.45103142,125.47,125.45,31.68]
[1743427838363,14.45103142,125.47,125.44,0.0582867]
[1743427838565,0.05786755,125.47,125.44,0.0582867]
[1743427840558,14.45103142,125.47,125.44,0.0582867]
[1743427840764,14.39316387,125.45,125.44,0.0582867]
[1743427840963,14.39316387,125.45,125.41,31.68]
[1743427841266,14.39316387,125.43,125.36,3.3173]
[1743427841464,14.39316387,125.43,125.36,34.9973]
[1743427842162,0.0575177,125.41,125.38,0.0534281]
[1743427843865,0.0575177,125.41,125.38,8.0302281]
[1743427844159,0.0575177,125.41,125.39,62.0]
[1743427844863,0.0575177,125.41,125.39,69.9764]
[1743427845164,0.0575177,125.41,125.39,93.68]
[1743427845754,0.0575177,125.41,125.39,31.68]
[1743427846667,7.9765,125.39,125.38,0.0534281]
[1743427849569,7.9788,125.36,125.32,11.4498]
[1743427850073,7.9788,125.36,125.32,43.1498]
[1743427850259,14.39316387,125.37,125.31,31.7]
[1743427850667,7.9807,125.33,125.31,31.7]
[1743427850867,0.05886793,125.35,125.31,31.7]
[1743427851068,14.4520318,125.35,125.31,0.0539851]
[1743427851866,31.7,125.34,125.26,6.8528]
[1743427852068,23.10729616,125.33,125.26,6.8528]
[1743427852469,23.10729616,125.33,125.27,62.0]
[1743427852759,7.9833,125.29,125.25,31.7]
[1743427852965,54.80729616,125.31,125.23,35.2521]
[1743427853270,0.05090551,125.28,125.26,0.0543147]
[1743427853460,31.75090551,125.28,125.2,519.21598778]
[1743427853663,31.75090551,125.28,125.2,550.91598778]
[1743427853863,35.0819,125.28,125.2,550.91598778]
[1743427854166,31.7,125.28,125.2,550.91598778]
[1743427854370,31.7,125.28,125.24,7.9859]
[1743427854567,31.7,125.28,125.2,550.91598778]
[1743427854769,0.0609777,125.27,125.25,0.06061161]
[1743427855970,0.0609777,125.27,125.25,8.04571161]
[1743427857070,0.0609777,125.27,125.25,0.06061161]
[1743427858765,7.9848,125.26,125.25,0.06061161]
[1743427858971,0.0609777,125.27,125.25,0.06061161]
[1743427859466,23.10729616,125.26,125.21,62.0]
[1743427859876,7.9861,125.24,125.21,62.0]
[1743427860066,23.10729616,125.26,125.21,62.0]
[1743427860271,7.987,125.23,125.19,11.5412]
[1743427860470,23.10729616,125.26,125.19,11.5412]
[1743427860679,0.05697855,125.22,125.2,0.05211142]
[1743427862176,7.988,125.21,125.2,0.05211142]
[1743427862477,0.05697855,125.22,125.2,0.05211142]
[1743427863575,7.988,125.21,125.2,0.05211142]
[1743427863779,23.16427471,125.22,125.15,31.72]
[1743427863982,23.10729616,125.22,125.15,31.72]
[1743427864478,23.10729616,125.2,125.14,31.72]
[1743427865079,23.1678527,125.18,125.16,0.05910478]
[1743427865270,7.9907,125.17,125.16,0.05910478]
[1743427865977,7.9928,125.14,125.11,31.94]
[1743427866376,55.14729616,125.18,125.12,62.0]
[1743427866377,7.9917,125.16,125.12,62.0]
[1743427866579,32.04,125.18,125.12,62.0]
[1743427866775,26.42939616,125.2,125.12,62.0]
[1743427866975,26.42939616,125.2,125.15,0.05809695]
[1743427867180,0.05881268,125.17,125.15,0.05809695]
[1743427867475,7.9912,125.16,125.15,0.05809695]
[1743427868874,0.05881268,125.17,125.15,0.05809695]
[1743427872279,7.9912,125.16,125.15,0.05809695]
[1743427872778,31.09849616,125.16,125.15,0.05809695]
[1743427873081,23.10729616,125.16,125.08,6.9187]
[1743427873377,23.10729616,125.14,125.1,32.8]
[1743427873581,7.9948,125.11,125.08,6.9187]
[1743427873978,23.10729616,125.14,125.08,14.9146]
[1743427874282,7.9954,125.1,125.08,6.9187]
[1743427874485,23.16187647,125.12,125.1,0.05445948]
[1743427874675,7.9944,125.11,125.1,0.05445948]
[1743427874876,23.10729616,125.12,125.06,7.9975]
[1743427875172,0.06017455,125.12,125.09,0.05418715]
[1743427875372,23.16747071,125.12,125.09,0.05418715]
[1743427875580,23.10729616,125.12,125.09,0.05418715]
[1743427875776,7.9984,125.05,124.92,358.0]
[1743427875982,23.10729616,125.09,125.0,8.001]
[1743427876172,23.10729616,125.09,125.01,36.9196]
[1743427876575,23.10729616,125.07,125.01,36.9196]
[1743427876775,23.10729616,125.07,125.02,62.0]
[1743427876980,0.05574473,125.05,125.01,36.9196]
[1743427877181,0.05574473,125.05,125.03,0.05480358]
[1743427877382,23.16304089,125.05,125.03,0.05480358]
[1743427878183,0.05574473,125.05,125.03,0.05480358]
[1743427878581,8.05424473,125.05,125.03,0.05480358]
[1743427879383,0.05574473,125.05,125.03,0.05480358]
[1743427879683,0.05574473,125.05,125.03,34.15480358]